[Event "Titled Tuesday Blitz April 18 Early 2023"]
[White "Yayloyan, Konstantin"]
[Black "Krsnik Cohar, Ivan Vihor"]
[WhiteFideId "13307088"]
[BlackFideId "14520044"]
[WhiteElo "2190"]
[BlackElo "2414"]
[Result "0-1"]
[Round "02"]
[TimeControl "180+2"]
[Date "2023.04.18"]
[WhiteClock "0:01:48"]
[BlackClock "0:00:54"]

1. e4 {[%clk 0:03:00]}  c5 {[%clk 0:02:24]} 2. Nf3 {[%clk 0:02:59]}  g6 {[%clk 0:02:24]} 3. d4 {[%clk 0:03:00]}  cxd4 {[%clk 0:02:24]} 4. Nxd4 {[%clk 0:03:01]}  Nf6 {[%clk 0:02:24]} 5. e5 {[%clk 0:02:59]}  Nd5 {[%clk 0:02:24]} 6. c4 {[%clk 0:02:59]}  Nc7 {[%clk 0:02:24]} 7. Nc3 {[%clk 0:02:59]}  Bg7 {[%clk 0:02:24]} 8. Bf4 {[%clk 0:02:59]}  O-O {[%clk 0:02:22]} 9. Be2 {[%clk 0:02:58]}  Nc6 {[%clk 0:02:23]} 10. Nxc6 {[%clk 0:02:55]}  dxc6 {[%clk 0:02:19]} 11. O-O {[%clk 0:02:47]}  Ne6 {[%clk 0:02:19]} 12. Bg3 {[%clk 0:02:46]}  Qc7 {[%clk 0:02:13]} 13. f4 {[%clk 0:02:44]}  Qb6+ {[%clk 0:02:13]} 14. Kh1 {[%clk 0:02:39]}  Qxb2 {[%clk 0:02:13]} 15. Ne4 {[%clk 0:02:38]}  Rd8 {[%clk 0:02:08]} 16. Qe1 {[%clk 0:02:36]}  Nd4 {[%clk 0:02:03]} 17. Rf2 {[%clk 0:02:32]}  Nc2 {[%clk 0:01:46]} 18. Rb1 {[%clk 0:02:18]}  Qd4 {[%clk 0:01:19]} 19. Qc1 {[%clk 0:02:05]}  Qxe4 {[%clk 0:01:15]} 20. Bf3 {[%clk 0:02:06]}  Qd4 {[%clk 0:01:13]} 21. Rxc2 {[%clk 0:02:05]}  Bf5 {[%clk 0:01:13]} 22. Rxb7 {[%clk 0:02:00]}  Bxc2 {[%clk 0:01:12]} 23. Qxc2 {[%clk 0:02:01]}  Rab8 {[%clk 0:01:05]} 24. Rxb8 {[%clk 0:01:52]}  Rxb8 {[%clk 0:01:06]} 25. h3 {[%clk 0:01:51]}  Rb2 {[%clk 0:00:58]} 26. Qa4 {[%clk 0:01:50]}  Rb1+ {[%clk 0:00:58]} 27. Be1 {[%clk 0:01:47]}  Rxe1+ {[%clk 0:00:57]} 28. Kh2 {[%clk 0:01:47]}  Qxf4+ {[%clk 0:00:57]} 29. g3 {[%clk 0:01:48]}  Qxf3 {[%clk 0:00:55]} 30. Qxc6 {[%clk 0:01:48]}  Rh1# {[%clk 0:00:54]} 0-1


[Site "https://www.chess.com"]

[Event "Titled Tuesday Blitz April 18 Early 2023"]
[White "Mushini Ajay"]
[Black "Milchev, Nikolay"]
[WhiteFideId "35066188"]
[BlackFideId "2906090"]
[WhiteElo "2145"]
[BlackElo "2449"]
[Result "0-1"]
[Round "02"]
[TimeControl "180+2"]
[Date "2023.04.18"]
[WhiteClock "0:02:14"]
[BlackClock "0:02:20"]

1. e4 {[%clk 0:03:00]}  e5 {[%clk 0:03:00]} 2. Nf3 {[%clk 0:02:59]}  Nc6 {[%clk 0:03:00]} 3. Bc4 {[%clk 0:03:00]}  Nf6 {[%clk 0:03:00]} 4. d3 {[%clk 0:03:01]}  h6 {[%clk 0:03:00]} 5. Nc3 {[%clk 0:03:00]}  d6 {[%clk 0:03:01]} 6. a3 {[%clk 0:03:00]}  g6 {[%clk 0:03:00]} 7. Nd5 {[%clk 0:03:01]}  Bg7 {[%clk 0:03:00]} 8. h3 {[%clk 0:03:00]}  Nxd5 {[%clk 0:03:00]} 9. Bxd5 {[%clk 0:02:59]}  Ne7 {[%clk 0:03:01]} 10. Bb3 {[%clk 0:02:59]}  c6 {[%clk 0:03:02]} 11. O-O {[%clk 0:02:57]}  O-O {[%clk 0:03:02]} 12. Re1 {[%clk 0:02:57]}  Kh7 {[%clk 0:03:01]} 13. c3 {[%clk 0:02:56]}  f5 {[%clk 0:03:01]} 14. d4 {[%clk 0:02:57]}  fxe4 {[%clk 0:03:01]} 15. Rxe4 {[%clk 0:02:58]}  Bf5 {[%clk 0:02:59]} 16. Re1 {[%clk 0:02:58]}  e4 {[%clk 0:02:59]} 17. Nh4 {[%clk 0:02:55]}  d5 {[%clk 0:03:00]} 18. Nxf5 {[%clk 0:02:55]}  Nxf5 {[%clk 0:02:59]} 19. Bf4 {[%clk 0:02:51]}  Qh4 {[%clk 0:02:58]} 20. Qg4 {[%clk 0:02:50]}  Qd8 {[%clk 0:02:52]} 21. Be5 {[%clk 0:02:39]}  h5 {[%clk 0:02:51]} 22. Qe2 {[%clk 0:02:38]}  Bxe5 {[%clk 0:02:44]} 23. dxe5 {[%clk 0:02:39]}  Qg5 {[%clk 0:02:37]} 24. f3 {[%clk 0:02:34]}  exf3 {[%clk 0:02:35]} 25. Qxf3 {[%clk 0:02:35]}  Nh4 {[%clk 0:02:33]} 26. Qe2 {[%clk 0:02:32]}  Rae8 {[%clk 0:02:24]} 27. e6 {[%clk 0:02:21]}  Rxe6 {[%clk 0:02:22]} 28. Qc2 {[%clk 0:02:14]}  Nf3+ {[%clk 0:02:20]} 0-1


[Site "https://www.chess.com"]

[Event "Titled Tuesday Blitz April 18 Early 2023"]
[White "Degenbaev, Aziz"]
[Black "Bogaudinov, Rushan"]
[WhiteFideId "13802640"]
[BlackFideId "4129288"]
[WhiteElo "2152"]
[BlackElo "1967"]
[Result "0-1"]
[Round "02"]
[TimeControl "180+2"]
[Date "2023.04.18"]
[WhiteClock "0:00:34"]
[BlackClock "0:01:43"]

1. e4 {[%clk 0:03:00]}  c5 {[%clk 0:02:59]} 2. Nf3 {[%clk 0:02:59]}  Nc6 {[%clk 0:02:59]} 3. Bb5 {[%clk 0:02:59]}  Qb6 {[%clk 0:02:59]} 4. Nc3 {[%clk 0:02:57]}  a6 {[%clk 0:02:56]} 5. Bxc6 {[%clk 0:02:57]}  Qxc6 {[%clk 0:02:56]} 6. d4 {[%clk 0:02:57]}  cxd4 {[%clk 0:02:57]} 7. Nxd4 {[%clk 0:02:58]}  Qc7 {[%clk 0:02:57]} 8. O-O {[%clk 0:02:58]}  e6 {[%clk 0:02:57]} 9. f4 {[%clk 0:02:48]}  b5 {[%clk 0:02:57]} 10. f5 {[%clk 0:02:29]}  Bb7 {[%clk 0:02:50]} 11. a3 {[%clk 0:02:18]}  Nf6 {[%clk 0:02:44]} 12. Qd3 {[%clk 0:02:14]}  Bc5 {[%clk 0:02:40]} 13. Kh1 {[%clk 0:02:13]}  Ng4 {[%clk 0:02:13]} 14. Nf3 {[%clk 0:00:47]}  exf5 {[%clk 0:01:54]} 15. exf5 {[%clk 0:00:45]}  Bxf3 {[%clk 0:01:50]} 16. Bf4 {[%clk 0:00:33]}  Qxf4 {[%clk 0:01:45]} 17. Rae1+ {[%clk 0:00:34]}  Kf8 {[%clk 0:01:43]} 0-1


[Site "https://www.chess.com"]

[Event "Titled Tuesday Blitz April 18 Early 2023"]
[White "Rodriguez Santiago, Jaime"]
[Black "Petukhov, Dmitry"]
[WhiteFideId "3100898"]
[BlackFideId "4142748"]
[WhiteElo "2025"]
[BlackElo "2311"]
[Result "1-0"]
[Round "02"]
[TimeControl "180+2"]
[Date "2023.04.18"]
[WhiteClock "0:00:12"]
[BlackClock "0:00:04"]

1. c4 {[%clk 0:03:00]}  e5 {[%clk 0:02:59]} 2. Nc3 {[%clk 0:03:00]}  Nf6 {[%clk 0:02:58]} 3. g3 {[%clk 0:03:00]}  h5 {[%clk 0:02:58]} 4. h3 {[%clk 0:03:00]}  Nc6 {[%clk 0:02:55]} 5. Bg2 {[%clk 0:02:59]}  d6 {[%clk 0:02:50]} 6. e4 {[%clk 0:02:57]}  Be6 {[%clk 0:02:50]} 7. d3 {[%clk 0:02:57]}  Be7 {[%clk 0:02:48]} 8. Nge2 {[%clk 0:02:56]}  Nd4 {[%clk 0:02:48]} 9. Nxd4 {[%clk 0:02:56]}  exd4 {[%clk 0:02:48]} 10. Ne2 {[%clk 0:02:56]}  c5 {[%clk 0:02:48]} 11. f4 {[%clk 0:02:53]}  g6 {[%clk 0:02:45]} 12. O-O {[%clk 0:02:27]}  Qc8 {[%clk 0:02:36]} 13. Kh2 {[%clk 0:02:19]}  a6 {[%clk 0:01:59]} 14. f5 {[%clk 0:02:05]}  gxf5 {[%clk 0:01:56]} 15. Bg5 {[%clk 0:02:04]}  Ng4+ {[%clk 0:01:50]} 16. hxg4 {[%clk 0:01:56]}  hxg4+ {[%clk 0:01:45]} 17. Bh4 {[%clk 0:01:54]}  fxe4 {[%clk 0:01:38]} 18. Bxe4 {[%clk 0:01:46]}  Bxh4 {[%clk 0:01:35]} 19. gxh4 {[%clk 0:01:45]}  Rxh4+ {[%clk 0:01:36]} 20. Kg2 {[%clk 0:01:43]}  g3 {[%clk 0:01:35]} 21. Nf4 {[%clk 0:01:10]}  Bh3+ {[%clk 0:01:33]} 22. Kxg3 {[%clk 0:01:01]}  Rh6 {[%clk 0:00:55]} 23. Rh1 {[%clk 0:00:49]}  f5 {[%clk 0:00:42]} 24. Bd5 {[%clk 0:00:41]}  Qd7 {[%clk 0:00:33]} 25. Rxh3 {[%clk 0:00:40]}  Qg7+ {[%clk 0:00:32]} 26. Kh2 {[%clk 0:00:40]}  O-O-O {[%clk 0:00:29]} 27. Qg1 {[%clk 0:00:39]}  Qe5 {[%clk 0:00:27]} 28. Qg3 {[%clk 0:00:38]}  Rxh3+ {[%clk 0:00:13]} 29. Kxh3 {[%clk 0:00:38]}  Rh8+ {[%clk 0:00:11]} 30. Kg2 {[%clk 0:00:38]}  Rh7 {[%clk 0:00:12]} 31. Re1 {[%clk 0:00:19]}  Qf6 {[%clk 0:00:12]} 32. Re6 {[%clk 0:00:19]}  Qf8 {[%clk 0:00:11]} 33. Rg6 {[%clk 0:00:18]}  Kc7 {[%clk 0:00:10]} 34. Rg8 {[%clk 0:00:18]}  Qf6 {[%clk 0:00:10]} 35. Ne6+ {[%clk 0:00:18]}  Kb6 {[%clk 0:00:10]} 36. Nf4 {[%clk 0:00:18]}  Qh6 {[%clk 0:00:10]} 37. Kf3 {[%clk 0:00:18]}  Qh1+ {[%clk 0:00:10]} 38. Qg2 {[%clk 0:00:18]}  Qd1+ {[%clk 0:00:11]} 39. Qe2 {[%clk 0:00:17]}  Qh1+ {[%clk 0:00:10]} 40. Rg2 {[%clk 0:00:17]}  Rh4 {[%clk 0:00:07]} 41. Qc2 {[%clk 0:00:15]}  Qf1+ {[%clk 0:00:06]} 42. Rf2 {[%clk 0:00:15]}  Qh1+ {[%clk 0:00:06]} 43. Ke2 {[%clk 0:00:15]}  Qg1 {[%clk 0:00:04]} 44. Qb3+ {[%clk 0:00:15]}  Ka5 {[%clk 0:00:03]} 45. Qxb7 {[%clk 0:00:12]}  Qc1 {[%clk 0:00:03]} 46. Qc7+ {[%clk 0:00:12]}  Ka4 {[%clk 0:00:03]} 47. Bc6+ {[%clk 0:00:12]}  Kb4 {[%clk 0:00:04]} 48. Qb6# {[%clk 0:00:12]} 1-0


[Site "https://www.chess.com"]

[Event "Titled Tuesday Blitz April 18 Early 2023"]
[White "Vafin, Ayrat"]
[Black "Skaric, Djuro"]
[WhiteFideId "4146530"]
[BlackFideId "934569"]
[WhiteElo "2317"]
[BlackElo "2282"]
[Result "0-1"]
[Round "02"]
[TimeControl "180+2"]
[Date "2023.04.18"]
[WhiteClock "0:00:14"]
[BlackClock "0:00:52"]

1. d4 {[%clk 0:03:00]}  d6 {[%clk 0:03:00]} 2. Bf4 {[%clk 0:02:59]}  g6 {[%clk 0:03:01]} 3. e3 {[%clk 0:03:00]}  Bg7 {[%clk 0:03:02]} 4. Nf3 {[%clk 0:03:00]}  Nf6 {[%clk 0:03:00]} 5. h4 {[%clk 0:03:01]}  h6 {[%clk 0:02:58]} 6. c4 {[%clk 0:03:00]}  Nc6 {[%clk 0:02:58]} 7. Nc3 {[%clk 0:03:00]}  O-O {[%clk 0:02:56]} 8. d5 {[%clk 0:02:58]}  Nb8 {[%clk 0:02:51]} 9. Bd3 {[%clk 0:02:56]}  e5 {[%clk 0:02:50]} 10. dxe6 {[%clk 0:02:54]}  Bxe6 {[%clk 0:02:50]} 11. Qc2 {[%clk 0:02:37]}  Nc6 {[%clk 0:02:48]} 12. a3 {[%clk 0:02:31]}  Nh5 {[%clk 0:02:46]} 13. O-O-O {[%clk 0:02:17]}  Qd7 {[%clk 0:02:28]} 14. Nd5 {[%clk 0:02:08]}  a5 {[%clk 0:02:18]} 15. Be4 {[%clk 0:01:33]}  a4 {[%clk 0:02:15]} 16. Bh2 {[%clk 0:01:22]}  Na5 {[%clk 0:02:12]} 17. Kb1 {[%clk 0:01:09]}  Ra6 {[%clk 0:02:01]} 18. Nd4 {[%clk 0:01:09]}  Bxd5 {[%clk 0:01:57]} 19. Bxd5 {[%clk 0:01:05]}  Rb6 {[%clk 0:01:42]} 20. Bf3 {[%clk 0:01:00]}  Nf6 {[%clk 0:01:35]} 21. g4 {[%clk 0:00:59]}  c5 {[%clk 0:01:27]} 22. Nb5 {[%clk 0:00:56]}  Rxb5 {[%clk 0:01:27]} 23. cxb5 {[%clk 0:00:54]}  Qxb5 {[%clk 0:01:27]} 24. Bxd6 {[%clk 0:00:52]}  Rc8 {[%clk 0:01:26]} 25. Be5 {[%clk 0:00:52]}  Nc4 {[%clk 0:01:19]} 26. Qc3 {[%clk 0:00:52]}  Nxe5 {[%clk 0:01:18]} 27. Qxe5 {[%clk 0:00:52]}  Ne8 {[%clk 0:01:13]} 28. Qxg7+ {[%clk 0:00:27]}  Nxg7 {[%clk 0:01:13]} 29. Rd2 {[%clk 0:00:26]}  c4 {[%clk 0:01:13]} 30. Kc1 {[%clk 0:00:25]}  c3 {[%clk 0:01:12]} 31. bxc3 {[%clk 0:00:26]}  Rxc3+ {[%clk 0:01:12]} 32. Rc2 {[%clk 0:00:26]}  Qb3 {[%clk 0:01:09]} 33. Rxc3 {[%clk 0:00:27]}  Qxc3+ {[%clk 0:01:09]} 34. Kb1 {[%clk 0:00:27]}  Qxa3 {[%clk 0:01:09]} 35. Rc1 {[%clk 0:00:26]}  Qb3+ {[%clk 0:01:09]} 36. Ka1 {[%clk 0:00:26]}  a3 {[%clk 0:01:06]} 37. Rb1 {[%clk 0:00:26]}  Qc3+ {[%clk 0:01:03]} 38. Ka2 {[%clk 0:00:27]}  Qd2+ {[%clk 0:00:58]} 39. Kxa3 {[%clk 0:00:27]}  Qxf2 {[%clk 0:00:56]} 40. Bxb7 {[%clk 0:00:26]}  Qxe3+ {[%clk 0:00:55]} 41. Rb3 {[%clk 0:00:26]}  Qe7+ {[%clk 0:00:54]} 42. Rb4 {[%clk 0:00:21]}  Ne6 {[%clk 0:00:54]} 43. h5 {[%clk 0:00:18]}  g5 {[%clk 0:00:52]} 44. Be4 {[%clk 0:00:17]}  Kg7 {[%clk 0:00:52]} 45. Kb3 {[%clk 0:00:14]}  Nc5+ {[%clk 0:00:52]} 0-1


[Site "https://www.chess.com"]

[Event "Titled Tuesday Blitz April 18 Early 2023"]
[White "Pesotskiy, Mikhail"]
[Black "Fiedorek, Michal"]
[WhiteFideId "34164453"]
[BlackFideId "1199528"]
[WhiteElo "2131"]
[BlackElo "2135"]
[Result "0-1"]
[Round "02"]
[TimeControl "180+2"]
[Date "2023.04.18"]
[WhiteClock "0:00:18"]
[BlackClock "0:00:12"]

1. d4 {[%clk 0:02:59]}  Nf6 {[%clk 0:02:57]} 2. c4 {[%clk 0:02:59]}  g6 {[%clk 0:02:55]} 3. Nc3 {[%clk 0:03:00]}  Bg7 {[%clk 0:02:54]} 4. e4 {[%clk 0:02:59]}  d6 {[%clk 0:02:55]} 5. f3 {[%clk 0:03:00]}  O-O {[%clk 0:02:54]} 6. Be3 {[%clk 0:03:00]}  e5 {[%clk 0:02:53]} 7. d5 {[%clk 0:03:00]}  c6 {[%clk 0:02:50]} 8. Qd2 {[%clk 0:03:00]}  cxd5 {[%clk 0:02:50]} 9. cxd5 {[%clk 0:03:01]}  Nbd7 {[%clk 0:02:35]} 10. Bd3 {[%clk 0:03:00]}  Nc5 {[%clk 0:02:35]} 11. Bc2 {[%clk 0:02:56]}  Nh5 {[%clk 0:02:33]} 12. Nge2 {[%clk 0:02:55]}  f5 {[%clk 0:02:29]} 13. exf5 {[%clk 0:02:55]}  gxf5 {[%clk 0:02:29]} 14. O-O {[%clk 0:02:56]}  b6 {[%clk 0:02:26]} 15. b4 {[%clk 0:02:43]}  Nd7 {[%clk 0:02:25]} 16. f4 {[%clk 0:02:44]}  exf4 {[%clk 0:01:47]} 17. Nxf4 {[%clk 0:02:45]}  Nxf4 {[%clk 0:01:48]} 18. Bxf4 {[%clk 0:02:35]}  Ne5 {[%clk 0:01:48]} 19. Rae1 {[%clk 0:02:29]}  Bd7 {[%clk 0:01:47]} 20. Ne2 {[%clk 0:02:14]}  Rc8 {[%clk 0:01:46]} 21. Nd4 {[%clk 0:02:13]}  Qc7 {[%clk 0:01:45]} 22. Bb3 {[%clk 0:02:03]}  Nc4 {[%clk 0:01:33]} 23. Qf2 {[%clk 0:02:01]}  b5 {[%clk 0:01:21]} 24. Re7 {[%clk 0:01:46]}  Qb6 {[%clk 0:01:09]} 25. Rd1 {[%clk 0:01:24]}  Rf7 {[%clk 0:00:48]} 26. Rxf7 {[%clk 0:01:08]}  Kxf7 {[%clk 0:00:49]} 27. Ne6 {[%clk 0:00:54]}  Qxf2+ {[%clk 0:00:47]} 28. Kxf2 {[%clk 0:00:54]}  Bc3 {[%clk 0:00:27]} 29. Bxc4 {[%clk 0:00:45]}  Rxc4 {[%clk 0:00:26]} 30. Bxd6 {[%clk 0:00:46]}  Bxe6 {[%clk 0:00:26]} 31. dxe6+ {[%clk 0:00:45]}  Kxe6 {[%clk 0:00:26]} 32. a3 {[%clk 0:00:38]}  Bd4+ {[%clk 0:00:27]} 33. Rxd4 {[%clk 0:00:36]}  Rxd4 {[%clk 0:00:27]} 34. Bc5 {[%clk 0:00:37]}  Rd7 {[%clk 0:00:25]} 35. Kf3 {[%clk 0:00:35]}  Kd5 {[%clk 0:00:24]} 36. Kf4 {[%clk 0:00:35]}  Rf7 {[%clk 0:00:23]} 37. g3 {[%clk 0:00:28]}  a6 {[%clk 0:00:23]} 38. h4 {[%clk 0:00:28]}  Kc4 {[%clk 0:00:23]} 39. Ke5 {[%clk 0:00:23]}  Kb3 {[%clk 0:00:18]} 40. Ke6 {[%clk 0:00:20]}  Rg7 {[%clk 0:00:18]} 41. Bd6 {[%clk 0:00:20]}  Rg6+ {[%clk 0:00:19]} 42. Ke5 {[%clk 0:00:19]}  Kxa3 {[%clk 0:00:19]} 43. h5 {[%clk 0:00:20]}  Rxg3 {[%clk 0:00:18]} 44. Kxf5 {[%clk 0:00:20]}  Rd3 {[%clk 0:00:17]} 45. Be7 {[%clk 0:00:19]}  Ka4 {[%clk 0:00:15]} 46. Kg5 {[%clk 0:00:19]}  Rd7 {[%clk 0:00:15]} 47. Bc5 {[%clk 0:00:17]}  a5 {[%clk 0:00:14]} 48. bxa5 {[%clk 0:00:18]}  Kxa5 {[%clk 0:00:13]} 49. Kh6 {[%clk 0:00:19]}  b4 {[%clk 0:00:12]} 50. Bd4 {[%clk 0:00:18]}  Rxd4 {[%clk 0:00:12]} 51. Kxh7 {[%clk 0:00:18]}  Rh4 {[%clk 0:00:12]} 52. h6 {[%clk 0:00:18]}  b3 {[%clk 0:00:12]} 53. Kg6 {[%clk 0:00:18]}  b2 {[%clk 0:00:12]} 54. h7 {[%clk 0:00:18]} 0-1


[Site "https://www.chess.com"]

[Event "Titled Tuesday Blitz April 18 Early 2023"]
[White "Bagrationi, Alexander"]
[Black "ibove"]
[WhiteFideId "14104954"]
[WhiteElo "2398"]
[BlackElo "2321"]
[Result "1-0"]
[Round "02"]
[TimeControl "180+2"]
[Date "2023.04.18"]
[WhiteClock "0:00:12"]
[BlackClock "0:00:19"]

1. d4 {[%clk 0:02:48]}  Nf6 {[%clk 0:02:54]} 2. c4 {[%clk 0:02:45]}  g6 {[%clk 0:02:53]} 3. Nc3 {[%clk 0:02:44]}  Bg7 {[%clk 0:02:53]} 4. e4 {[%clk 0:02:44]}  d6 {[%clk 0:02:52]} 5. h3 {[%clk 0:02:45]}  a6 {[%clk 0:02:40]} 6. g4 {[%clk 0:02:41]}  O-O {[%clk 0:02:36]} 7. Nge2 {[%clk 0:02:37]}  b5 {[%clk 0:02:35]} 8. Ng3 {[%clk 0:02:32]}  b4 {[%clk 0:02:31]} 9. Nb1 {[%clk 0:02:15]}  c5 {[%clk 0:02:30]} 10. d5 {[%clk 0:02:11]}  e6 {[%clk 0:02:29]} 11. Bg2 {[%clk 0:02:06]}  exd5 {[%clk 0:02:29]} 12. cxd5 {[%clk 0:02:07]}  Re8 {[%clk 0:02:29]} 13. O-O {[%clk 0:02:06]}  Nbd7 {[%clk 0:02:16]} 14. Nd2 {[%clk 0:01:56]}  a5 {[%clk 0:02:15]} 15. a4 {[%clk 0:01:39]}  Ba6 {[%clk 0:02:12]} 16. Re1 {[%clk 0:01:39]}  c4 {[%clk 0:02:13]} 17. Bf1 {[%clk 0:01:31]}  Rc8 {[%clk 0:02:07]} 18. Nb3 {[%clk 0:01:26]}  Ne5 {[%clk 0:01:25]} 19. Nd4 {[%clk 0:01:23]}  Nd3 {[%clk 0:01:17]} 20. Bxd3 {[%clk 0:01:12]}  cxd3 {[%clk 0:01:17]} 21. Nc6 {[%clk 0:01:12]}  Qb6 {[%clk 0:01:06]} 22. Be3 {[%clk 0:01:11]}  Qc7 {[%clk 0:01:06]} 23. Bd4 {[%clk 0:01:05]}  Nd7 {[%clk 0:01:00]} 24. Bxg7 {[%clk 0:00:35]}  Kxg7 {[%clk 0:01:01]} 25. Qd2 {[%clk 0:00:28]}  Nc5 {[%clk 0:00:52]} 26. Qg5 {[%clk 0:00:24]}  Nd7 {[%clk 0:00:28]} 27. Nf5+ {[%clk 0:00:22]}  Kh8 {[%clk 0:00:23]} 28. Nh6 {[%clk 0:00:15]}  Rf8 {[%clk 0:00:21]} 29. Rac1 {[%clk 0:00:14]}  Qb6 {[%clk 0:00:20]} 30. Qe7 {[%clk 0:00:12]}  Nc5 {[%clk 0:00:18]} 31. Nxf7+ {[%clk 0:00:11]}  Rxf7 {[%clk 0:00:19]} 32. Qxf7 {[%clk 0:00:12]}  Rc7 {[%clk 0:00:19]} 33. Qf8# {[%clk 0:00:12]} 1-0


[Site "https://www.chess.com"]

[Event "Titled Tuesday Blitz April 18 Early 2023"]
[White "Balint, Vilmos"]
[Black "Wisniacki, Flavio"]
[WhiteFideId "718050"]
[BlackFideId "119229"]
[WhiteElo "2034"]
[BlackElo "2150"]
[Result "1-0"]
[Round "02"]
[TimeControl "180+2"]
[Date "2023.04.18"]
[WhiteClock "0:01:33"]
[BlackClock "0:01:19"]

1. e4 {[%clk 0:02:56]}  e5 {[%clk 0:02:58]} 2. f4 {[%clk 0:02:55]}  Bc5 {[%clk 0:02:57]} 3. Nf3 {[%clk 0:02:54]}  d6 {[%clk 0:02:57]} 4. Bc4 {[%clk 0:02:54]}  Nf6 {[%clk 0:02:54]} 5. Qe2 {[%clk 0:02:55]}  Nc6 {[%clk 0:02:51]} 6. fxe5 {[%clk 0:02:55]}  dxe5 {[%clk 0:02:50]} 7. Bxf7+ {[%clk 0:02:55]}  Kxf7 {[%clk 0:02:48]} 8. Qc4+ {[%clk 0:02:55]}  Kf8 {[%clk 0:02:39]} 9. Qxc5+ {[%clk 0:02:56]}  Qe7 {[%clk 0:02:39]} 10. Qxe7+ {[%clk 0:02:54]}  Kxe7 {[%clk 0:02:39]} 11. d3 {[%clk 0:02:54]}  Be6 {[%clk 0:02:33]} 12. h3 {[%clk 0:02:51]}  h6 {[%clk 0:02:30]} 13. a3 {[%clk 0:02:51]}  g5 {[%clk 0:02:30]} 14. Be3 {[%clk 0:02:47]}  Rad8 {[%clk 0:02:27]} 15. Nbd2 {[%clk 0:02:47]}  a6 {[%clk 0:02:27]} 16. O-O-O {[%clk 0:02:47]}  g4 {[%clk 0:02:21]} 17. Nh4 {[%clk 0:02:46]}  h5 {[%clk 0:02:20]} 18. Ng6+ {[%clk 0:02:46]}  Kd7 {[%clk 0:02:18]} 19. Nxh8 {[%clk 0:02:47]}  Rxh8 {[%clk 0:02:18]} 20. Rdf1 {[%clk 0:02:46]}  Ne8 {[%clk 0:02:14]} 21. hxg4 {[%clk 0:02:42]}  Bxg4 {[%clk 0:02:13]} 22. Nf3 {[%clk 0:02:40]}  Nd6 {[%clk 0:02:13]} 23. Nh4 {[%clk 0:02:32]}  Rg8 {[%clk 0:02:12]} 24. Rf6 {[%clk 0:02:30]}  Be6 {[%clk 0:02:04]} 25. Rh6 {[%clk 0:02:24]}  Bf7 {[%clk 0:01:56]} 26. Rf1 {[%clk 0:02:22]}  Rg4 {[%clk 0:01:52]} 27. Nf5 {[%clk 0:02:17]}  Nxf5 {[%clk 0:01:45]} 28. Rxf5 {[%clk 0:02:14]}  Nd8 {[%clk 0:01:30]} 29. Bg5 {[%clk 0:01:57]}  Be6 {[%clk 0:01:30]} 30. Rxe5 {[%clk 0:01:51]}  Nf7 {[%clk 0:01:29]} 31. Rhxe6 {[%clk 0:01:40]}  Nxg5 {[%clk 0:01:19]} 32. Rg6 {[%clk 0:01:33]} 1-0


[Site "https://www.chess.com"]

[Event "Titled Tuesday Blitz April 18 Early 2023"]
[White "Zaichenko, Daria"]
[Black "Erzhanov, Arman"]
[WhiteFideId "4197453"]
[BlackFideId "4138821"]
[WhiteElo "2039"]
[BlackElo "2138"]
[Result "1-0"]
[Round "02"]
[TimeControl "180+2"]
[Date "2023.04.18"]
[WhiteClock "0:00:55"]
[BlackClock "0:00:01"]

1. e4 {[%clk 0:03:00]}  d6 {[%clk 0:02:58]} 2. d4 {[%clk 0:02:57]}  Nf6 {[%clk 0:02:58]} 3. Nc3 {[%clk 0:02:57]}  e5 {[%clk 0:02:59]} 4. f4 {[%clk 0:02:53]}  exd4 {[%clk 0:02:58]} 5. Qxd4 {[%clk 0:02:52]}  Nc6 {[%clk 0:02:59]} 6. Qd1 {[%clk 0:02:52]}  Be7 {[%clk 0:02:59]} 7. Nf3 {[%clk 0:02:52]}  O-O {[%clk 0:02:59]} 8. Bd3 {[%clk 0:02:52]}  Re8 {[%clk 0:02:59]} 9. O-O {[%clk 0:02:51]}  Bf8 {[%clk 0:03:00]} 10. h3 {[%clk 0:02:47]}  Nb4 {[%clk 0:03:00]} 11. e5 {[%clk 0:02:42]}  dxe5 {[%clk 0:02:47]} 12. fxe5 {[%clk 0:02:39]}  Bc5+ {[%clk 0:02:48]} 13. Kh2 {[%clk 0:02:36]}  Nxd3 {[%clk 0:02:45]} 14. cxd3 {[%clk 0:02:26]}  Nd5 {[%clk 0:02:39]} 15. d4 {[%clk 0:02:25]}  Bb6 {[%clk 0:02:36]} 16. Ng5 {[%clk 0:02:21]}  Be6 {[%clk 0:02:07]} 17. Qh5 {[%clk 0:02:16]}  h6 {[%clk 0:02:07]} 18. Nxf7 {[%clk 0:02:16]}  Qe7 {[%clk 0:02:07]} 19. Nxh6+ {[%clk 0:02:11]}  gxh6 {[%clk 0:02:07]} 20. Ne4 {[%clk 0:02:05]}  Bxd4 {[%clk 0:01:51]} 21. Bxh6 {[%clk 0:02:04]}  Qh7 {[%clk 0:01:34]} 22. Rf3 {[%clk 0:01:49]}  Re7 {[%clk 0:00:33]} 23. Nf6+ {[%clk 0:01:21]}  Nxf6 {[%clk 0:00:29]} 24. exf6 {[%clk 0:01:21]}  Bf5 {[%clk 0:00:05]} 25. fxe7 {[%clk 0:01:01]}  Be5+ {[%clk 0:00:05]} 26. Kh1 {[%clk 0:01:00]}  Bd6 {[%clk 0:00:02]} 27. Rxf5 {[%clk 0:00:56]}  Bxe7 {[%clk 0:00:01]} 28. Raf1 {[%clk 0:00:55]} 1-0


[Site "https://www.chess.com"]

[Event "Titled Tuesday Blitz April 18 Early 2023"]
[White "Mouhamad, Joachim"]
[Black "Ardila, Oscar Humberto"]
[WhiteFideId "656410"]
[BlackFideId "4404742"]
[WhiteElo "2125"]
[BlackElo "1918"]
[Result "0-1"]
[Round "02"]
[TimeControl "180+2"]
[Date "2023.04.18"]
[WhiteClock "0:01:29"]
[BlackClock "0:00:41"]

1. e4 {[%clk 0:03:00]}  e5 {[%clk 0:02:59]} 2. Nf3 {[%clk 0:03:00]}  Nf6 {[%clk 0:03:00]} 3. d4 {[%clk 0:02:58]}  Nxe4 {[%clk 0:02:59]} 4. Bd3 {[%clk 0:02:57]}  d5 {[%clk 0:02:58]} 5. Nxe5 {[%clk 0:02:56]}  Nf6 {[%clk 0:02:56]} 6. O-O {[%clk 0:02:54]}  Be7 {[%clk 0:02:55]} 7. c4 {[%clk 0:02:48]}  dxc4 {[%clk 0:02:52]} 8. Bxc4 {[%clk 0:02:49]}  O-O {[%clk 0:02:52]} 9. Nc3 {[%clk 0:02:44]}  Nbd7 {[%clk 0:02:43]} 10. Qb3 {[%clk 0:02:38]}  Nxe5 {[%clk 0:02:39]} 11. dxe5 {[%clk 0:02:38]}  Ng4 {[%clk 0:02:32]} 12. e6 {[%clk 0:02:35]}  Qd6 {[%clk 0:02:22]} 13. exf7+ {[%clk 0:02:31]}  Kh8 {[%clk 0:02:21]} 14. g3 {[%clk 0:02:26]}  Ne5 {[%clk 0:02:17]} 15. Bf4 {[%clk 0:02:21]}  Bh3 {[%clk 0:01:48]} 16. Bxe5 {[%clk 0:02:09]}  Qxe5 {[%clk 0:01:47]} 17. Rfe1 {[%clk 0:02:10]}  Qf6 {[%clk 0:01:18]} 18. Nd5 {[%clk 0:02:01]}  Qc6 {[%clk 0:01:13]} 19. Rxe7 {[%clk 0:01:57]}  Rad8 {[%clk 0:01:12]} 20. Rxc7 {[%clk 0:01:50]}  Qd6 {[%clk 0:00:56]} 21. Qxb7 {[%clk 0:01:42]}  Rb8 {[%clk 0:00:48]} 22. Qc6 {[%clk 0:01:38]}  Qe5 {[%clk 0:00:42]} 23. b3 {[%clk 0:01:29]}  Qxa1+ {[%clk 0:00:41]} 0-1


[Site "https://www.chess.com"]